[Event "GCT Superbet Romania 2022"]
[Site "Bucharest"]
[Date "2022.05.12"]
[Round "7.3"]
[White "Firouzja, Alireza"]
[Black "Dominguez Perez, Leinier"]
[Result "1-0"]
[ECO "E48"]
[WhiteElo "2804"]
[BlackElo "2753"]
[Annotator "TA"]
[PlyCount "115"]
[EventDate "2022.05.05"]
[EventType "tourn"]
[EventCountry "ROU"]
[SourceTitle "playchess.com"]
[Source "ChessBase"]
[SourceQuality "1"]
[TimeControl "40/5400+30:1800+30"]

{[%evp 11,115,0,0,-12,-6,-16,0,-17,-26,-31,-23,-28,0,0,0,0,0,0,0,0,0,-16,0,-10,-9,-13,0,-19,0,-12,0,-28,-35,-49,-43,-39,-26,-43,-7,0,14,0,0,0,0,0,0,0,0,0,0,0,0,0,0,0,0,-52,0,0,183,179,165,166,167,151,131,156,156,109,222,214,216,214,240,212,212,212,281,276,315,314,307,313,316,256,252,0,264,260,258,184,245,257,257,254,327,331,477,423,647,629,582,600,837,810]} 1. d4 {[%emt 0:00:07]} Nf6 {[%emt 0:01:08]} 2. c4 {[%emt 0:00:10]} e6 {[%emt 0:00:07]} 3. Nc3 {[%emt 0:00:08]} Bb4 {[%emt 0:00:21]} 4. e3 {[%emt 0:00:15]} O-O {[%emt 0:00:13]} 5. Bd3 {[%emt 0:00:08]} d5 {[%emt 0:00:19]} 6. cxd5 {[%emt 0:00:24]} exd5 {[%emt 0:00:08]} 7. a3 {[%emt 0:00:19] E48: Nimzo-Indian: Rubinstein: 5 Bd3 d5 including 6 Ne2, but excluding 6 a3.} Bd6 {[%emt 0:00:35]} 8. Qc2 {[%emt 0:00:24]} c6 {[%emt 0:01:09][%cal Bc7c6,Bc6c5][%mdl 32]} 9. Nge2 {[%emt 0:00:32] The position is equal.} Re8 {[%emt 0:00:43]} 10. Bd2 {[%emt 0:00:10]} b6 {[%emt 0:00:11] [#]} 11. f3 $146 {[%emt 0:02:22]} ({Predecessor:} 11. O-O Ba6 12. Kh1 c5 13. Rad1 g6 14. Qb1 Bb7 15. Nf4 Nbd7 16. f3 Nf8 17. b4 cxd4 18. exd4 Bxf4 19. Bxf4 {1-0 (64) Aronian,L (2772)-Vidit,S (2727) Berlin 2022}) 11... c5 {[%emt 0:01:02]} 12. g4 {[%emt 0:01:02]} c4 {[%emt 0:00:08]} 13. Bf5 {[%emt 0:00:17]} Bxf5 $1 {[%emt 0:00:09]} 14. Qxf5 {[%emt 0:00:16] And now g5 would win.} g6 {[%emt 0:00:32]} 15. Qg5 {[%emt 0:00:26]} Nc6 {[%emt 0:01:04]} 16. O-O {[%emt 0:13:17]} (16. Nxd5 $2 Nxd5 17. Qxd8 Raxd8 $19) 16... Bf8 {[%emt 0:05:15]} 17. Qh4 {[%emt 0:01:18][%cal Oe3e4]} h6 {[%emt 0:03:05]} 18. Rad1 {[%emt 0:08:51][%cal Oe3e4]} b5 {[%emt 0:33:07]} 19. Qf2 {[%emt 0:14:49]} (19. Nxb5 Rb8 20. a4 a6 $17) 19... Qd7 {[%emt 0:11:08]} 20. Qg2 {[%emt 0:15:14]} (20. Nxb5 Rab8 21. Nbc3 Rxb2 $17) 20... Bg7 {[%emt 0:07:09]} 21. h4 {[%emt 0:07:04]} Ne7 {[%emt 0:02:11]} 22. Nf4 {[%emt 0:08:17]} a5 {[%emt 0:00:31]} 23. Nce2 {[%emt 0:02:27]} Qb7 {[%emt 0:03:50]} 24. g5 {[%emt 0:03:00]} hxg5 {[%emt 0:00:09]} 25. hxg5 {[%emt 0:00:06]} Nd7 {[%emt 0:00:35]} 26. Kf2 $1 {[%emt 0:05:16]} b4 {[%emt 0:00:50]} 27. Rh1 $1 {[%emt 0:00:14]} Nf5 {[%emt 0:06:53]} 28. Qh3 {[%emt 0:01:25]} Ne7 $1 {[%emt 0:14:41]} 29. Ng3 {[%emt 0:10:17]} Ra6 {[%emt 0:00:16]} 30. axb4 {[%emt 0:01:14]} axb4 {[%emt 0:00:03]} 31. Bxb4 $40 {[%emt 0:00:27][%mdl 128] Black needs to defend precisely.} Qxb4 {[%emt 0:03:06]} 32. Qxd7 {[%emt 0:00:03]} Raa8 {[%emt 0:01:52]} 33. Nfe2 {[%emt 0:04:15]} (33. Nxd5 Nxd5 34. Qxd5 Qxb2+ 35. Ne2 Qb3 $17) (33. Qh3 Qxb2+ 34. Nfe2 Nc6 $19) 33... Rad8 {[%emt 0:01:32]} 34. Qg4 {[%emt 0:00:23]} (34. Qc7 $11) 34... Qxb2 {[%emt 0:00:18]} (34... Rd6 $1 $15) 35. Qf4 $11 {[%emt 0:01:00]} Nc6 $2 {[%emt 0:01:25] [#]} (35... Ra8 $11) 36. Rh7 $3 $18 {[%emt 0:00:36][%cal Oh7g7][%mdl 512] Threatening mate with Rxg7+!} Re6 {[%emt 0:02:14] Strongly threatening ...Nb4.} (36... Kxh7 37. Qxf7) 37. Qh4 $1 {[%emt 0:00:20] Dancing on a razor blade.} (37. Rdh1 $6 Nxd4 38. Rxg7+ (38. exd4 Rde8 $16) 38... Kxg7 $14) 37... Nxd4 {[%emt 0:00:29] [#]} (37... Qb3 $2 {[#]} 38. Rxg7+ $1 {[%mdl 512]} Kf8 39. Qh7 $1 Qxe3+ 40. Kg2 $18) 38. Rxg7+ $1 {[%emt 0:02:00][%mdl 512]} Kxg7 {[%emt 0:00:00]} 39. Qxd4+ {[%emt 0:00:23]} Qxd4 {[%emt 0:00:02]} 40. Rxd4 {[%emt 0:00:00]} Red6 {[%emt 0:00:00]} (40... Rb6 $16) 41. Nc3 {[%emt 0:02:05]} f6 {[%emt 0:03:17]} 42. gxf6+ {[%emt 0:01:22]} Kxf6 {[%emt 0:00:24]} 43. Nge2 {[%emt 0:01:38]} Ke5 {[%emt 0:02:18]} 44. Rg4 {[%emt 0:01:11]} Rg8 {[%emt 0:06:08]} 45. Nd4 {[%emt 0:06:33]} Rd7 {[%emt 0:04:46]} 46. Rg5+ {[%emt 0:00:48]} Kf6 {[%emt 0:00:09]} 47. f4 {[%emt 0:00:15]} (47. Rxd5 $6 Rxd5 48. Nxd5+ Kg7 $18) 47... Rgd8 {[%emt 0:03:46]} 48. Re5 {[%emt 0:03:53]} Kf7 {[%emt 0:00:41]} 49. Rg5 $2 {[%emt 0:01:32]} (49. Ne6 $18 Rc8 50. Ke2 (50. Nxd5 c3 $11)) 49... Rh8 {[%emt 0:03:23][%mdl 8192]} (49... Kf6 $11 50. Nc6 Rc8) 50. Nf3 {[%emt 0:00:56] Hoping for Ne5+.} ({Resist} 50. Rxd5 $6 Rxd5 51. Nxd5 g5 $16) (50. Nxd5 Rh5 51. Rxh5 gxh5 $18) 50... Kg7 {[%emt 0:00:15]} 51. Rg1 {[%emt 0:03:41]} ({Much less strong is} 51. Rxd5 Rxd5 52. Nxd5 Rc8 $18) 51... Rb7 {[%emt 0:02:03]} (51... Rb8 {was called for.} 52. Ne5 Rd6) 52. Ra1 {[%emt 0:02:41]} Rd8 {[%emt 0:01:50]} 53. Nd4 {[%emt 0:00:47] Black must now prevent Ne6+.} Rdd7 {[%emt 0:01:23]} 54. Ra5 {[%emt 0:01:12]} g5 {[%emt 0:05:00]} (54... Kh6 $142 55. Nxd5 (55. Rxd5 Rxd5 56. Nxd5 Rb2+ 57. Kf3 g5 $18) 55... Kg7) 55. f5 {[%emt 0:00:43] White is clearly winning.} Rb2+ {[%emt 0:01:18]} (55... Ra7 $142 56. Rc5 (56. Rxd5 Rxd5 57. Nxd5 Ra3 $18) 56... Kh6 57. Nxd5 Ra2+ 58. Kg3 Rd6) 56. Kf3 {[%emt 0:00:24]} Rd2 {[%emt 0:00:12]} 57. Nxd5 {[%emt 0:02:25] Pair of Knights!} c3 {[%emt 0:00:06]} 58. Ne6+ {[%emt 0:00:40] Weighted Error Value: White=0.12 (very precise) /Black=0.32} 1-0

[Event "GCT Superbet Romania 2022"]
[Site "Bucharest"]
[Date "2022.05.12"]
[Round "7.4"]
[White "Nepomniachtchi, Ian"]
[Black "Mamedyarov, Shakhriyar"]
[Result "0-1"]
[ECO "C54"]
[WhiteElo "2773"]
[BlackElo "2770"]
[Annotator "TA"]
[PlyCount "112"]
[EventDate "2022.05.05"]
[EventType "tourn"]
[EventCountry "ROU"]
[SourceTitle "playchess.com"]
[Source "ChessBase"]
[SourceQuality "1"]
[TimeControl "40/5400+30:1800+30"]

{[%evp 15,112,21,29,2,8,12,7,-32,26,25,58,18,18,12,28,-31,-29,-64,-66,-65,-27,-62,-67,-61,-51,-60,-42,-47,-64,-60,-8,-14,-15,-68,0,-14,0,0,0,0,0,0,19,12,28,0,0,0,0,0,0,0,0,0,0,0,497,0,0,0,0,0,0,-15,-12,-26,-27,-178,-50,-98,-97,-241,-241,-233,-240,-244,-231,-318,-302,-327,-279,-954,-456,-455,-450,-428,-418,-462,-456,-820,-820,-800,-789,-1068,-1029,-29949,-6635,-5406,-2036]} 1. e4 {[%emt 0:00:03]} e5 {[%emt 0:00:04]} 2. Nf3 {[%emt 0:00:06]} Nc6 {[%emt 0:00:14]} 3. Bc4 {[%emt 0:00:05]} Bc5 {[%emt 0:00:07]} 4. O-O {[%emt 0:00:24]} Nf6 {[%emt 0:00:04]} 5. d3 {[%emt 0:00:05]} O-O {[%emt 0:00:12]} 6. c3 {[%emt 0:00:06]} d5 {[%emt 0:00:14]} 7. exd5 {[%emt 0:00:10]} Nxd5 {[%emt 0:00:03]} 8. Re1 {[%emt 0:00:48]} Bg4 {[%emt 0:00:20]} 9. Nbd2 {[%emt 0:00:10][%cal Bb1d2,Bd2e4,Be4g3][%mdl 32] C54: Giuoco Piano: 4 c3 Nf6, main lines with 5 d4 and 5 d3.} (9. h3 $5 {[%cal Rh3g4]} Be6 10. Nbd2 $14) 9... Nb6 {[%emt 0:00:31]} 10. h3 {[%emt 0:00:13]} Bh5 {[%emt 0:00:06]} 11. Bb3 {[%emt 0:00:16] The position is equal. now scores much better than the old 11.Bb5.} Kh8 {[%emt 0:01:50]} ({Black should play} 11... Qxd3 $15 12. Bc2 Bxf3 $1 13. Nxf3 Qxd1 14. Rxd1 a5) 12. Ne4 {[%emt 0:02:02]} Nd7 {[%emt 0:00:11] [#]} 13. Ng3 $146 {[%emt 0:07:05]} ({Predecessor:} 13. Bd5 f5 14. Neg5 h6 15. Ne6 Qf6 16. Nxf8 Rxf8 17. d4 e4 18. dxc5 Nde5 19. Nxe5 Bxd1 {1-0 (43) Firouzja,A (2770)-Sasikiran,K (2640) Riga 2021}) 13... Bxf3 {[%emt 0:07:52]} 14. Qxf3 {[%emt 0:00:46]} f5 {[%emt 0:00:04][%cal Oe5e4]} 15. d4 {[%emt 0:07:57]} (15. Nxf5 $2 g6 16. g4 gxf5 $19) (15. Bc2 $11) 15... exd4 $15 {[%emt 0:03:48]} 16. Bf4 {[%emt 0:01:11] Against Nce5} (16. Nxf5 $2 g6 17. Be6 gxf5 $19) 16... dxc3 $1 {[%emt 0:07:04]} 17. bxc3 {[%emt 0:20:28]} g5 {[%emt 0:00:37]} 18. Be3 {[%emt 0:08:24]} Bxe3 {[%emt 0:04:43]} 19. fxe3 {[%emt 0:00:05]} Nde5 {[%emt 0:06:59]} 20. Qh5 {[%emt 0:00:33]} Qf6 $1 {[%emt 0:00:12]} 21. Rf1 {[%emt 0:01:24]} Qg6 {[%emt 0:02:22]} 22. Qe2 {[%emt 0:00:47]} a6 {[%emt 0:17:08]} (22... f4 $1 $15 23. Bc2 Qf7) 23. Bc2 $11 {[%emt 0:02:14]} Ne7 {[%emt 0:00:37]} 24. Rf2 {[%emt 0:00:46]} ({Better is} 24. Qf2 $11) 24... Rf7 {[%emt 0:08:50] Black is more active.} (24... g4 $15 25. Raf1 gxh3 26. Nxf5 Qg4 $1 27. Qxg4 (27. Nxe7 $2 Qxe2 28. Rxe2 Rxf1+ 29. Kh2 Re8 $19) 27... Nxg4) 25. Raf1 {[%emt 0:02:24][%cal Rg3f5]} Raf8 {[%emt 0:00:45]} 26. Bb3 {[%emt 0:03:29]} Rf6 {[%emt 0:00:39][%cal Bf7f6,Bf6d6,Bd6d3,Bd3c3,Bc3c1][%mdl 32]} 27. Nh5 {[%emt 0:00:04]} Rd6 {[%emt 0:04:10]} 28. g4 {[%emt 0:00:43]} Rd3 {[%emt 0:05:20]} 29. Bc2 {[%emt 0:07:58]} Rxc3 {[%emt 0:00:17]} (29... Rdd8 {looks sharper.} 30. Bxf5 Qd6 31. Be4 Rxf2 32. Qxf2 c6) 30. Bxf5 {[%emt 0:05:45]} (30. Qd2 {is interesting.} Qc6 31. Bxf5 Ng8 32. Be4) 30... Nxf5 {[%emt 0:09:14]} 31. Rxf5 {[%emt 0:00:27]} Rxf5 {[%emt 0:00:04]} 32. Rxf5 {[%emt 0:00:07]} Rc1+ {[%emt 0:04:18]} 33. Kf2 {[%emt 0:04:28]} Qd6 {[%emt 0:00:55] Prevents Qd2. aiming for ...Nc4.} 34. Qb2 {[%emt 0:03:00]} Rc5 {[%emt 0:00:08]} 35. Kg2 {[%emt 0:03:29] Threatens to win with Qf2.} h6 $2 {[%emt 0:07:31][%mdl 8192]} (35... Rd5 $11 {and Black has nothing to worry.} 36. Qxb7 Rd2+ 37. Kg1 Rd1+ 38. Kg2 (38. Rf1 Rxf1+ 39. Kxf1 Qd3+ 40. Kg1 Qxe3+ 41. Kg2 Qe2+ 42. Kg3 Qxa2 $11) 38... Rd2+ 39. Kg1 Rd1+ 40. Kg2 (40. Rf1 Rxf1+ 41. Kxf1 Qd3+ 42. Kg1 Qxe3+ 43. Kg2 Qd2+ 44. Kf1 Qd8 $11) 40... Rd2+) 36. Rf6 $2 {[%emt 0:02:59]} ({Only move:} 36. Qf2 $1 $18 {White wants to mate with Rf8+.} Kg8 37. Nf6+ Kh8 38. Ne8) 36... Qd1 {[%emt 0:07:29]} 37. Rf2 {[%emt 0:00:48] Prevents Rc2. And now Qd4 would win.} ({Of course not} 37. Rxh6+ Kg8 38. Qb3+ Qxb3 39. axb3 Rb5 $15) 37... Qd5+ {[%emt 0:01:25]} 38. Kh2 {[%emt 0:09:35]} Qd6 {[%emt 0:00:09] Inhibits Rf8+.} 39. Ng3 {[%emt 0:00:41] Strongly threatening Ne4.} Rb5 {[%emt 0:01:24]} 40. Qc2 {[%emt 0:00:00]} Rd5 $36 {[%emt 0:00:00][%cal Oe5f3][%mdl 2048] Black is pushing.} 41. Kg2 {[%emt 0:15:46] Inhibits Nf3.} (41. Qf5 $11 {and White is okay.}) 41... Nd3 {[%emt 0:10:11]} ({Black should try} 41... Rd3 $1 $19 42. Qb2 b5) 42. Qc3+ $15 {[%emt 0:02:38] [#]} Qe5 $1 {[%emt 0:00:06]} 43. Qa3 {[%emt 0:00:23] [#]} c5 $1 $19 {[%emt 0:03:49]} ({Stronger than} 43... Nxf2 44. Qf8+ Kh7 45. Qf7+ Kh8 46. Qf8+ Kh7 47. Qf7+ Kh8 48. Qf8+ $11) 44. Re2 {[%emt 0:00:29]} Kh7 {[%emt 0:01:26]} 45. Qa4 {[%emt 0:02:20]} Qe6 {[%emt 0:01:39]} 46. Qc2 {[%emt 0:06:01]} b5 {[%emt 0:01:18]} 47. Nh5 {[%emt 0:03:29]} Rd6 {[%emt 0:01:51]} 48. Re1 $2 {[%emt 0:05:14]} (48. Qb1) 48... Qc4 {[%emt 0:03:29]} (48... Qg6 $142 49. Qe2 Nxe1+ 50. Qxe1 Qc2+ 51. Kf3 Rd1) 49. Qb1 {[%emt 0:01:16]} Qb4 {[%emt 0:00:58]} 50. Qxb4 {[%emt 0:00:05]} Nxb4 {[%emt 0:00:03][%mdl 4096] Endgame KRN-KRN} ({And not} 50... cxb4 51. Rf1 $17) 51. Rf1 {[%emt 0:00:06]} c4 {[%emt 0:00:31][%cal Bc5c4,Bc4c3,Bc3c2][%mdl 32]} 52. e4 {[%emt 0:00:20]} (52. Nf6+ $142 Kg6 53. Ne4) 52... c3 {[%emt 0:01:36]} 53. e5 {[%emt 0:00:26]} Rc6 {[%emt 0:00:45] ...c2 is the strong threat.} 54. Rf7+ {[%emt 0:01:06]} Kg8 {[%emt 0:00:07]} 55. Rd7 {[%emt 0:00:22]} c2 {[%emt 0:00:39]} 56. e6 {[%emt 0:00:01]} Rxe6 {[%emt 0:00:08] What a bad dream for White.  Weighted Error Value: White=0.79/Black=0.33} 0-1

[Event "GCT Superbet Romania 2022"]
[Site "Bucharest"]
[Date "2022.05.12"]
[Round "7.5"]
[White "Rapport, Richard"]
[Black "Vachier-Lagrave, Maxime"]
[Result "0-1"]
[ECO "D48"]
[WhiteElo "2776"]
[BlackElo "2750"]
[Annotator "TA"]
[PlyCount "56"]
[EventDate "2022.05.05"]
[EventType "tourn"]
[EventCountry "ROU"]
[SourceTitle "playchess.com"]
[Source "ChessBase"]
[SourceQuality "1"]
[TimeControl "40/5400+30:1800+30"]

{[%evp 34,56,15,16,16,18,18,8,17,10,0,-14,-7,-7,-9,-11,0,0,0,0,0,-17,-14,-504,-486]} 1. Nf3 {[%emt 0:00:05]} d5 {[%emt 0:00:04]} 2. d4 {[%emt 0:01:37]} Nf6 {[%emt 0:00:08]} 3. c4 {[%emt 0:00:18]} dxc4 {[%emt 0:00:04]} 4. e3 {[%emt 0:00:25]} e6 {[%emt 0:00:08]} 5. Bxc4 {[%emt 0:00:07]} a6 {[%emt 0:00:05]} 6. Bb3 {[%emt 0:02:32]} c5 {[%emt 0:02:10]} 7. Nc3 {[%emt 0:00:54]} b5 {[%emt 0:07:12]} 8. e4 {[%emt 0:00:26]} Bb7 {[%emt 0:06:41]} 9. d5 {[%emt 0:00:49]} c4 {[%emt 0:00:35]} 10. Bc2 {[%emt 0:00:19]} Nbd7 {[%emt 0:06:33]} 11. O-O {[%emt 0:01:18]} Qc7 {[%emt 0:08:29]} 12. dxe6 {[%emt 0:12:14]} fxe6 {[%emt 0:00:06]} 13. Ng5 {[%emt 0:00:08]} Nc5 {[%emt 0:08:37]} 14. e5 {[%emt 0:12:54]} Qxe5 {[%emt 0:00:31]} 15. Re1 {[%emt 0:08:29]} Qd6 {[%emt 0:01:14]} 16. Qxd6 {[%emt 0:02:17]} Bxd6 {[%emt 0:00:08]} 17. Be3 {[%emt 0:00:21]} O-O {[%emt 0:00:49]} 18. Rad1 {[%emt 0:03:49]} Be7 {[%emt 0:08:49][%cal Bd6e7,Be7c5,Bc5b6,Bb6a5][%mdl 32] D48: Semi-Slav: Meran System: 7...b5 8 Bd3 a6.} 19. Bxc5 {[%emt 0:02:53][%mdl 64] [#] Remove Defender} Bxc5 {[%emt 0:00:04]} 20. Nxe6 {[%emt 0:00:11] Pair of Knights!} Rfc8 {[%emt 0:00:05] The position is equal.} 21. a3 {[%emt 0:07:10]} Rab8 {[%emt 0:07:14]} 22. h3 {[%emt 0:02:30]} Bb6 {[%emt 0:04:05]} 23. g4 {[%emt 0:05:46]} Re8 {[%emt 0:06:45] [#]} 24. Kf1 $146 {[%emt 0:03:26]} ({Predecessor:} 24. g5 Nh5 25. g6 h6 26. Kf1 Nf6 27. Bf5 Rbc8 28. Rd6 Ba5 29. Red1 {1-0 (37) Auburger,K-Kaspschak,K (1545) GER email 2011}) 24... Re7 {[%emt 0:11:19]} 25. f4 {[%emt 0:04:06]} Rbe8 {[%emt 0:04:24]} 26. f5 {[%emt 0:00:40]} Ba5 {[%emt 0:00:26]} 27. Re5 {[%emt 0:07:33]} Nd7 {[%emt 0:05:54]} 28. Nd5 $2 {[%emt 0:01:45][%mdl 8192] [#]} Nxe5 {[%emt 0:00:20] Weighted Error Value: White=0.72/Black=0.01 (flawless)} 0-1

[Event "GCT Superbet Romania 2022"]
[Site "Bucharest"]
[Date "2022.05.13"]
[Round "8.1"]
[White "So, Wesley"]
[Black "Firouzja, Alireza"]
[Result "1/2-1/2"]
[ECO "E92"]
[WhiteElo "2766"]
[BlackElo "2804"]
[Annotator "TA"]
[PlyCount "75"]
[EventDate "2022.05.05"]
[EventType "tourn"]
[EventCountry "ROU"]
[SourceTitle "playchess.com"]
[Source "ChessBase"]
[SourceQuality "1"]
[TimeControl "40/5400+30:1800+30"]

{[%evp 25,75,0,0,0,0,0,10,8,6,0,0,3,8,8,9,0,0,0,0,0,0,0,2,3,39,56,51,0,0,0,0,0,0,0,0,0,0,0,0,0,0,0,0,0,0,0,0,0,0,0,0,0]} 1. d4 {[%emt 0:00:02]} Nf6 {[%emt 0:00:06]} 2. c4 {[%emt 0:00:30]} g6 {[%emt 0:00:08]} 3. Nc3 {[%emt 0:00:12]} Bg7 {[%emt 0:00:08]} 4. e4 {[%emt 0:00:55]} d6 {[%emt 0:00:07]} 5. Nf3 {[%emt 0:00:47]} O-O {[%emt 0:00:25]} 6. Be2 {[%emt 0:01:44]} e5 {[%emt 0:00:11]} 7. dxe5 {[%emt 0:01:54]} dxe5 {[%emt 0:00:15]} 8. Qxd8 {[%emt 0:00:04]} Rxd8 {[%emt 0:00:06]} 9. Bg5 {[%emt 0:00:04]} Re8 {[%emt 0:10:30]} 10. Nd5 {[%emt 0:00:14]} Nxd5 {[%emt 0:00:08]} 11. cxd5 {[%emt 0:00:05]} c6 {[%emt 0:00:14]} 12. Bc4 {[%emt 0:00:06]} b5 {[%emt 0:02:01]} 13. Bb3 {[%emt 0:00:05]} a5 {[%emt 0:04:00] And now ...a4 would win.} 14. a4 {[%emt 0:00:14] E92: King's Indian: Classical: 6 Be2 e5: 7 dxe5, 7 Be3 and Petrosian System without 7...Nbd7.} bxa4 {[%emt 0:19:56]} 15. Bxa4 {[%emt 0:00:07]} Bd7 {[%emt 0:01:52]} 16. dxc6 {[%emt 0:02:37]} Bxc6 {[%emt 0:00:49]} 17. Ke2 {[%emt 0:00:10]} Bxa4 {[%emt 0:04:57]} 18. Rxa4 {[%emt 0:00:16]} Nc6 {[%emt 0:07:13] [#]} 19. Rc1 $146 {[%emt 0:20:14]} ({Predecessor:} 19. Bd2 Rab8 20. Bc3 Nd4+ 21. Kd3 Nb3 22. Kc2 Rec8 23. Rd1 Nd4+ {½-½ (23) Magalashvili,D (2502)-Goganov,A (2577) Baku 2013}) 19... Nd4+ {[%emt 0:03:57]} 20. Kf1 {[%emt 0:01:45]} Rab8 {[%emt 0:06:05]} 21. Rb1 {[%emt 0:01:27]} Rb5 {[%emt 0:03:04]} 22. Nxd4 {[%emt 0:02:19]} exd4 {[%emt 0:00:10]} 23. Bd2 {[%emt 0:00:05]} d3 {[%emt 0:10:27]} 24. Rxa5 {[%emt 0:01:52]} Rxb2 {[%emt 0:03:16]} 25. Rxb2 {[%emt 0:00:04]} Bxb2 $11 {[%emt 0:00:04][%mdl 4096] Endgame KRB-KRB} 26. Rd5 {[%emt 0:00:07]} (26. f3 $14) 26... Rxe4 {[%emt 0:00:10] The position is equal.} 27. Rxd3 {[%emt 0:00:05]} Rd4 {[%emt 0:00:08]} 28. Ke2 {[%emt 0:00:03] [#] Rb3 is the strong threat.} Rxd3 {[%emt 0:00:07]} 29. Kxd3 {[%emt 0:00:03] KB-KB} f5 {[%emt 0:00:10]} 30. f3 {[%emt 0:00:03]} Kf7 {[%emt 0:00:07]} 31. h3 {[%emt 0:00:04]} h5 {[%emt 0:00:06]} 32. g4 {[%emt 0:00:03]} fxg4 {[%emt 0:00:06]} 33. fxg4 {[%emt 0:00:03]} hxg4 {[%emt 0:00:07]} 34. hxg4 {[%emt 0:00:03]} Bf6 {[%emt 0:00:05]} 35. Be3 {[%emt 0:00:02]} Be7 {[%emt 0:00:08]} 36. Bd2 {[%emt 0:00:03]} Bf6 {[%emt 0:00:07]} 37. Be3 {[%emt 0:00:02]} Be7 {[%emt 0:00:02]} 38. Bd2 {[%emt 0:00:02] Weighted Error Value: White=0.04 (flawless) /Black=0.02 (flawless)} 1/2-1/2